Workbook

Sheet QuickBooks Desktop Export Tips

Sheet Sheet1
D1: Commisioners | F1: Bill Sears | I1: Howel Carr | L1: Jacob Chambers | O1: Mark Carrico | R1: Mickey Grooms | U1: Phillip Carr | X1: Steve Mason
F2: Jan - Dec 23 | I2: Jan - Dec 23 | L2: Jan - Dec 23 | O2: Jan - Dec 23 | R2: Jan - Dec 23 | U2: Jan - Dec 23 | X2: Jan - Dec 23 | AA2: Jan - Dec 23
A3: Employee Wages, Taxes and Adjustments
C4: Gross Pay
D5: SALARY | F5: 3600 | I5: 2700 | L5: 3600 | O5: 3600 | R5: 3600 | U5: 3600 | X5: 3600 | AA5: =ROUND(F5+I5+L5+O5+R5+U5+X5,5) -> 24300
C6: Total Gross Pay | F6: =ROUND(SUM(F4:F5),5) -> 3600 | I6: =ROUND(SUM(I4:I5),5) -> 2700 | L6: =ROUND(SUM(L4:L5),5) -> 3600 | O6: =ROUND(SUM(O4:O5),5) -> 3600 | R6: =ROUND(SUM(R4:R5),5) -> 3600 | U6: =ROUND(SUM(U4:U5),5) -> 3600 | X6: =ROUND(SUM(X4:X5),5) -> 3600 | AA6: =ROUND(F6+I6+L6+O6+R6+U6+X6,5) -> 24300
C7: Deductions from Gross Pay
D8: SCHOLARSHIP | F8: -142.92 | I8: -107.19 | L8: -142.92 | O8: -142.92 | R8: -142.92 | U8: -142.92 | X8: -142.92 | AA8: =ROUND(F8+I8+L8+O8+R8+U8+X8,5) -> -964.71
C9: Total Deductions from Gross Pay | F9: =ROUND(SUM(F7:F8),5) -> -142.92 | I9: =ROUND(SUM(I7:I8),5) -> -107.19 | L9: =ROUND(SUM(L7:L8),5) -> -142.92 | O9: =ROUND(SUM(O7:O8),5) -> -142.92 | R9: =ROUND(SUM(R7:R8),5) -> -142.92 | U9: =ROUND(SUM(U7:U8),5) -> -142.92 | X9: =ROUND(SUM(X7:X8),5) -> -142.92 | AA9: =ROUND(F9+I9+L9+O9+R9+U9+X9,5) -> -964.71
B10: Adjusted Gross Pay | F10: =ROUND(F6+F9,5) -> 3457.08 | I10: =ROUND(I6+I9,5) -> 2592.81 | L10: =ROUND(L6+L9,5) -> 3457.08 | O10: =ROUND(O6+O9,5) -> 3457.08 | R10: =ROUND(R6+R9,5) -> 3457.08 | U10: =ROUND(U6+U9,5) -> 3457.08 | X10: =ROUND(X6+X9,5) -> 3457.08 | AA10: =ROUND(F10+I10+L10+O10+R10+U10+X10,5) -> 23335.29
B11: Taxes Withheld
C12: Federal Withholding | F12: 0 | I12: 0 | L12: -504 | O12: -720 | R12: 0 | U12: -600 | X12: 0 | AA12: =ROUND(F12+I12+L12+O12+R12+U12+X12,5) -> -1824
C13: Medicare Employee | F13: -52.2 | I13: -39.15 | L13: -52.2 | O13: -52.2 | R13: -52.2 | U13: -52.2 | X13: -52.2 | AA13: -352.35
C14: Social Security Employee | F14: -223.2 | I14: -167.4 | L14: -223.2 | O14: -223.2 | R14: -223.2 | U14: -223.2 | X14: -223.2 | AA14: -1506.6
C15: KY - Withholding | F15: -27.96 | I15: -20.97 | L15: -160.44 | O15: -27.96 | R15: -27.96 | U15: -27.96 | X15: -27.96 | AA15: -321.21
C16: Graves County tax | F16: -36 | I16: -27 | L16: -36 | O16: -36 | R16: -36 | U16: -36 | X16: -36 | AA16: -243
C17: Medicare Employee Addl Tax | F17: 0 | I17: 0 | L17: 0 | O17: 0 | R17: 0 | U17: 0 | X17: 0 | AA17: 0
B18: Total Taxes Withheld | F18: =ROUND(SUM(F11:F17),5) -> -339.36 | I18: =ROUND(SUM(I11:I17),5) -> -254.52 | L18: =ROUND(SUM(L11:L17),5) -> -975.84 | O18: =ROUND(SUM(O11:O17),5) -> -1059.36 | R18: =ROUND(SUM(R11:R17),5) -> -339.36 | U18: =ROUND(SUM(U11:U17),5) -> -939.36 | X18: =ROUND(SUM(X11:X17),5) -> -339.36 | AA18: -4247.16
A19: Net Pay | F19: =ROUND(F3+F10+F18,5) -> 3117.72 | I19: =ROUND(I3+I10+I18,5) -> 2338.29 | L19: =ROUND(L3+L10+L18,5) -> 2481.24 | O19: =ROUND(O3+O10+O18,5) -> 2397.72 | R19: =ROUND(R3+R10+R18,5) -> 3117.72 | U19: =ROUND(U3+U10+U18,5) -> 2517.72 | X19: =ROUND(X3+X10+X18,5) -> 3117.72 | AA19: 19088.13
A20: Employer Taxes and Contributions
B21: Federal Unemployment | F21: 0 | I21: 0 | L21: 0 | O21: 0 | R21: 0 | U21: 21.6 | X21: 0 | AA21: =ROUND(F21+I21+L21+O21+R21+U21+X21,5) -> 21.6
B22: Medicare Company | F22: 52.2 | I22: 39.15 | L22: 52.2 | O22: 52.2 | R22: 52.2 | U22: 52.2 | X22: 52.2 | AA22: =ROUND(F22+I22+L22+O22+R22+U22+X22,5) -> 352.35
B23: Social Security Company | F23: 223.2 | I23: 167.4 | L23: 223.2 | O23: 223.2 | R23: 223.2 | U23: 223.2 | X23: 223.2 | AA23: =ROUND(F23+I23+L23+O23+R23+U23+X23,5) -> 1506.6
B24: KY - Unemployment | F24: 0 | I24: 0 | L24: 0 | O24: 0 | R24: 0 | U24: 0 | X24: 0 | AA24: =ROUND(F24+I24+L24+O24+R24+U24+X24,5) -> 0
A25: Total Employer Taxes and Contributions | F25: =ROUND(SUM(F20:F24),5) -> 275.4 | I25: =ROUND(SUM(I20:I24),5) -> 206.55 | L25: =ROUND(SUM(L20:L24),5) -> 275.4 | O25: =ROUND(SUM(O20:O24),5) -> 275.4 | R25: =ROUND(SUM(R20:R24),5) -> 275.4 | U25: =ROUND(SUM(U20:U24),5) -> 297 | X25: =ROUND(SUM(X20:X24),5) -> 275.4 | AA25: =ROUND(F25+I25+L25+O25+R25+U25+X25,5) -> 1880.55
D28: 2023 Annual Compensation Rate | F28: 3600 | I28: 3600 | L28: 3600 | O28: 3600 | R28: 3600 | U28: 3600 | X28: 3600
D30: Term Beginning | F30: 2021-02-01 | I30: 2021-02-01 | L30: 2020-02-01 | O30: 2023-02-01 | P30: * | R30: 2023-02-01 | S30: * | U30: 2021-02-01 | X30: 2020-02-01
D31: Term Ending | F31: 2025-01-31 | I31: 2023-09-29 | J31: ** | L31: 2024-01-31 | O31: 2027-01-31 | R31: 2027-01-31 | U31: 2025-01-31 | X31: 2024-01-31
C33: * | D33: Mickey Grooms and Mark Carrico previous terms expired 1/31/23 but they were reappointed .
C35: ** | D35: Howel Carr resigned 9/29/23
